Workbook

Sheet 算定基準
A1: 【別表２】日中一時支援事業に係る算定基準表 【令和６年度改定版】
A2: （改定時は障害者総合支援法に基づく障害福祉サービス費用の算定基準に準じる） | J2: 地域区分 | K2: 5級地 | N2: （１）基本単価Ⅰ(者)
A3: （１）基本単価Ⅰ（平成１８年厚生労働省告示第５２３号より） | N3: 6 | O3: =H6 -> 923
A4: 対象者 | H4: 単位 | J4: 4時間未満 | K4: 4時間以上 8時間未満 | L4: 8時間以上 | N4: 5 | O4: 784
A5: 障害者 | B5: (障害者支援施設等で実施した場合） | N5: 4 | O5: 648
B6: 福祉型短期入所サービス費（Ⅰ） | D6: 区分６ | H6: 923 | J6: =ROUNDDOWN($H6*VLOOKUP($K$2,$N$18:$O$24,2,FALSE)*VLOOKUP(J$4,$N$27:$O$29,2,FALSE),0) -> 2445 | K6: =ROUNDDOWN($H6*VLOOKUP($K$2,$N$18:$O$24,2,FALSE)*VLOOKUP(K$4,$N$27:$O$29,2,FALSE),0) -> 4891 | L6: =ROUNDDOWN($H6*VLOOKUP($K$2,$N$18:$O$24,2,FALSE)*VLOOKUP(L$4,$N$27:$O$29,2,FALSE),0) -> 7337 | N6: 3 | O6: 583
D7: 区分５ | H7: 784 | J7: =ROUNDDOWN($H7*VLOOKUP($K$2,$N$18:$O$24,2,FALSE)*VLOOKUP(J$4,$N$27:$O$29,2,FALSE),0) -> 2077 | K7: 4155 | L7: 6232 | N7: 2 | O7: 509
D8: 区分４ | H8: 648 | J8: 1717 | K8: 3434 | L8: 5151 | N8: 1 | O8: 509
D9: 区分３ | H9: 583 | J9: 1544 | K9: 3089 | L9: 4634 | N9: 区分なし | O9: =H24 -> 509
D10: 区分２ | H10: 509 | J10: 1348 | K10: 2697 | L10: 4046
D11: 区分１ | H11: 509 | J11: 1348 | K11: 2697 | L11: 4046 | N11: （１）基本単価Ⅰ(児)
B12: (療養介護に併設で実施した場合） | N12: 3 | O12: =H16 -> 784
B13: 医療型特定短期入所サービス費 | D13: 医療型特定短期入所サービス費（Ⅰ） | H13: 3117 | J13: 8260 | K13: 16520 | L13: 24780 | N13: 2 | O13: =H17 -> 615
D14: 医療型特定短期入所サービス費（Ⅱ） | H14: 2864 | J14: 7589 | K14: 15179 | L14: 22768 | N14: 1 | O14: =H18 -> 509
D15: 医療型特定短期入所サービス費（Ⅲ） | H15: 1826 | J15: 4838 | K15: 9677 | L15: 14516 | N15: 区分なし | O15: =H24 -> 509
A16: 障害児 | B16: 福祉型短期入所サービス費（Ⅲ） | D16: 区分３ | H16: 784 | J16: 2077 | K16: 4155 | L16: 6232
D17: 区分２ | H17: 615 | J17: 1629 | K17: 3259 | L17: 4889 | N17: （３）地域区分率×10円
D18: 区分１ | H18: 509 | J18: 1348 | K18: 2697 | L18: 4046 | N18: 2級地 | O18: =A27*10 -> 10.96
B19: 医療型特定短期入所サービス費 | D19: 医療型特定短期入所サービス費（Ⅰ） | H19: 2938 | J19: 7785 | K19: 15571 | L19: 23357 | N19: 3級地 | O19: =B27*10 -> 10.9
D20: 医療型特定短期入所サービス費（Ⅱ） | H20: 2735 | J20: 7247 | K20: 14495 | L20: 21743 | N20: 4級地 | O20: =C27*10 -> 10.72
D21: 医療型特定短期入所サービス費（Ⅲ） | H21: 1723 | J21: 4565 | K21: 9131 | L21: 13697 | N21: 5級地 | O21: =D27*10 -> 10.6
A22: （２）基本単価Ⅱ | N22: 6級地 | O22: =E27*10 -> 10.36
A23: 対象者(障害者支援施設等で実施した場合） | H23: 日額 | N23: 7級地 | O23: =F27*10 -> 10.18
A24: 基本単価Ⅰ以外の者で、障害支援区分の認定を受けていないもの | H24: 509 | J24: 1348 | K24: =ROUNDDOWN($H24*VLOOKUP($K$2,$N$18:$O$24,2,FALSE)*VLOOKUP(K$4,$N$27:$O$29,2,FALSE),0) -> 2697 | L24: 4046 | N24: その他 | O24: =G27*10 -> 10
A25: （３）地域区分率（平成１８年厚生労働省告示第５３９号より）
A26: 2級地 | B26: 3級地 | C26: 4級地 | D26: 5級地 | E26: 6級地 | F26: 7級地 | G26: その他 | N26: （４）時間区分率
A27: 1.096 | B27: 1.09 | C27: 1.072 | D27: 1.06 | E27: 1.036 | F27: 1.018 | G27: 1 | N27: 4時間未満 | O27: =25/100 -> 0.25
A28: （４）時間区分率 | N28: 4時間以上 8時間未満 | O28: =50/100 -> 0.5
A29: 所要時間 | N29: 8時間以上 | O29: =75/100 -> 0.75
A30: 4時間未満 | C30: 4時間以上8時間未満 | E30: 8時間以上
A31: 100分の25 | C31: 100分の50 | E31: 100分の75
A32: （５）送迎加算
A33: 片道につき | C33: 540
A34: （６）利用者負担
A35: 利用者は、（１）基本単価Ⅰ又は（２）基本単価Ⅱに（３）地域区分率×１０円、およ
A36: び（４）時間区分率を乗じて得た金額に、必要に応じて（５）送迎加算を加えた金額の１
A37: 割相当額を実施施設に対して直接支払う（小数点以下切り捨て）。ただし、利用者の１月
A38: 当たりの負担額は、次表に定める額を超えないものとする。
A39: 区分 | B39: 生活保護世帯又は | D39: 市町村民税非課税世帯 | F39: 市町村民税課税
B40: 支援給付受給世帯 | F40: 世帯
A41: 負担額 | B41: 0 | D41: 0 | F41: 900
A42: ～算定方法～
A43: （(１)又は(２)）×(３)×１０円×(４)＋(５)－(６) ※小数点以下切り捨て
